bitfinex/quotes_SOLUSD_20241220
["timestamp","ask_amount","ask_price","bid_price","bid_amount"]
[1734670725670,0.96247524,194.83,194.78,15.81167451]
[1734670726075,24.73935959,194.84,194.78,15.81167451]
[1734670726692,15.81167451,194.87,194.8,15.81167451]
[1734670726985,0.96236418,194.93,194.85,15.81167451]
[1734670727201,16.77403869,194.93,194.86,15.81167451]
[1734670727365,15.81167451,194.92,194.85,15.81167451]
[1734670727571,0.96214212,194.91,194.85,15.81167451]
[1734670728567,23.776884,194.9,194.85,15.81167451]
[1734670730598,23.776884,194.9,194.81,0.27916338]
[1734670730599,23.776884,194.9,194.84,15.81167451]
[1734670732070,16.77381663,194.91,194.84,15.81167451]
[1734670735102,15.81167451,194.9,194.83,15.81167451]
[1734670735597,15.81167451,194.92,194.85,15.81167451]
[1734670735797,15.81167451,194.93,194.86,15.81167451]
[1734670736197,15.81167451,194.94,194.88,15.81167451]
[1734670736406,0.96188703,194.97,194.9,15.81167451]
[1734670736606,15.81167451,194.97,194.91,15.81167451]
[1734670738388,15.81167451,194.97,194.9,15.81167451]
[1734670739479,15.81167451,194.96,194.9,15.81167451]
[1734670740303,15.81167451,194.97,194.9,15.81167451]
[1734670740781,16.77346409,194.96,194.89,15.81167451]
[1734670740982,15.81167451,194.93,194.84,3.0504]
[1734670741196,15.81167451,194.94,194.87,15.81167451]
[1734670741791,15.81167451,194.95,194.88,15.81167451]
[1734670741996,16.77360206,194.95,194.88,15.81167451]
[1734670742198,16.77360311,194.94,194.87,15.81167451]
[1734670744204,15.81167451,194.94,194.87,15.81167451]
[1734670744415,15.81167451,194.96,194.89,15.81167451]
[1734670745017,10.11582023,194.96,194.89,10.11582023]
[1734670745924,0.96184057,195.0,194.89,10.11582023]
[1734670746216,0.96184057,195.0,194.91,10.11582023]
[1734670746393,10.11582023,194.98,194.91,10.11582023]
[1734670746597,10.11582023,194.96,194.89,10.11582023]
[1734670746799,0.96186542,194.95,194.89,10.11582023]
[1734670747803,10.11582023,194.94,194.84,3.0504]
[1734670747984,10.11582023,194.94,194.87,10.11582023]
[1734670748507,0.96195065,194.99,194.86,10.11582023]
[1734670748703,10.11582023,194.93,194.86,10.11582023]
[1734670751704,10.11582023,194.93,194.82,19.32881601]
[1734670751883,10.11582023,194.93,194.86,10.11582023]
[1734670753812,10.11582023,194.94,194.87,10.11582023]
[1734670755306,10.11582023,194.92,194.83,23.776884]
[1734670755518,10.11582023,194.92,194.85,10.11582023]
[1734670757326,10.11582023,194.91,194.76,26.865508]
[1734670757611,10.11582023,194.87,194.8,10.11582023]
[1734670757807,0.9623582,194.86,194.8,10.11582023]
[1734670759024,0.96234649,194.91,194.85,10.11582023]
[1734670759318,3.2091,194.92,194.87,10.11582023]
[1734670759509,0.96206987,194.91,194.85,10.11582023]
[1734670759710,11.0778901,194.91,194.84,10.11582023]
[1734670760308,0.96206987,194.91,194.85,10.11582023]
[1734670760792,0.96206987,194.91,194.84,10.11582023]
[1734670762613,0.96206987,194.91,194.85,10.11582023]
[1734670764022,0.96209693,194.95,194.87,10.11582023]
[1734670764195,10.11582023,194.95,194.87,10.11582023]
[1734670764397,10.11582023,194.95,194.88,10.11582023]
[1734670765314,11.07775152,194.96,194.89,10.11582023]
[1734670766906,11.07775152,194.96,194.88,10.11582023]
[1734670767406,10.11582023,194.95,194.88,10.11582023]
[1734670767604,10.11582023,194.96,194.89,10.11582023]
[1734670767815,10.11582023,194.97,194.9,10.11582023]
[1734670768912,10.11582023,194.98,194.91,10.11582023]
[1734670769224,14.23345762,195.01,194.94,10.11582023]
[1734670770017,10.11582023,195.0,194.94,10.11582023]
[1734670770403,13.27172023,195.01,194.94,10.11582023]
[1734670771199,14.2333373,195.01,194.94,10.11582023]
[1734670772218,14.2333373,195.01,194.88,24.05479379]
[1734670772219,10.11582023,195.0,194.88,24.05479379]
[1734670772423,4.11751707,195.01,194.92,10.11582023]
[1734670772623,10.11582023,194.99,194.88,0.27790979]
[1734670772812,10.11582023,194.96,194.89,10.11582023]
[1734670773008,10.11582023,194.96,194.87,3.121]
[1734670773207,10.11582023,194.91,194.85,6.4214]
[1734670773413,10.11582023,194.91,194.84,10.11582023]
[1734670774507,10.11582023,194.9,194.82,3.1592]
[1734670774827,10.11582023,194.89,194.82,13.27502023]
[1734670775026,15.8174793,194.89,194.82,18.9766793]
[1734670776128,15.8174793,194.9,194.83,15.8174793]
[1734670777448,15.8174793,194.91,194.84,15.8174793]
[1734670777725,16.77961151,194.9,194.83,15.8174793]
[1734670778527,15.8174793,194.9,194.83,15.8174793]
[1734670779818,15.8174793,194.91,194.83,15.8174793]
[1734670780140,2.0563852,194.99,194.8,6.1073]
[1734670780141,15.8174793,194.88,194.81,15.8174793]
[1734670782032,15.8174793,194.89,194.82,15.8174793]
[1734670782233,0.9622318,194.88,194.82,15.8174793]
[1734670782532,15.8174793,194.9,194.83,15.8174793]
[1734670782735,0.96221491,194.89,194.83,15.8174793]
[1734670783150,16.77969421,194.89,194.82,15.8174793]
[1734670783526,0.96221491,194.89,194.83,15.8174793]
[1734670784241,16.77969421,194.89,194.82,15.8174793]
[1734670786439,0.96221491,194.89,194.83,15.8174793]
[1734670786915,16.77969421,194.89,194.82,15.8174793]
[1734670787114,0.96221491,194.89,194.83,15.8174793]
[1734670788826,15.8174793,194.88,194.8,15.8174793]
[1734670789030,15.8174793,194.85,194.78,15.8174793]
[1734670789434,15.8174793,194.86,194.79,15.8174793]
[1734670789646,0.96241092,194.85,194.79,15.8174793]
[1734670790633,0.96240046,194.86,194.8,15.8174793]
[1734670790821,0.96240046,194.86,194.79,15.8174793]
[1734670791848,15.8174793,194.83,194.75,6.19]
[1734670792025,0.96256069,194.82,194.76,15.8174793]
[1734670793237,0.96256069,194.82,194.78,15.8174793]
[1734670793428,0.96248316,194.84,194.78,15.8174793]
[1734670795063,0.96248316,194.84,194.78,10.12770301]
[1734670796561,10.12770301,194.86,194.79,10.12770301]
[1734670796863,0.96240484,194.85,194.79,10.12770301]
[1734670797468,11.09010785,194.85,194.78,10.12770301]
[1734670797747,10.12770301,194.84,194.77,10.12770301]
[1734670797936,0.96252729,194.83,194.77,10.12770301]
[1734670800059,11.0902303,194.83,194.76,10.12770301]
[1734670800259,11.0902303,194.83,194.72,3.0417]
[1734670800573,11.0902303,194.83,194.75,10.12770301]
[1734670800728,10.12770301,194.82,194.75,10.12770301]
[1734670801032,0.96264777,194.81,194.75,10.12770301]
[1734670801230,0.96263291,194.85,194.79,10.12770301]
[1734670801462,10.12770301,194.87,194.8,10.12770301]
[1734670801634,0.96242181,194.86,194.8,10.12770301]
[1734670801837,4.06872151,194.92,194.81,10.12770301]
[1734670802166,10.12770301,194.91,194.84,10.12770301]
[1734670802366,0.9621622,194.9,194.84,10.12770301]
[1734670802665,0.9621622,194.9,194.86,10.12770301]
[1734670802868,4.06846259,194.92,194.86,10.12770301]
[1734670803071,0.96216259,194.92,194.86,10.12770301]
[1734670803230,3.2825,194.97,194.9,10.12770301]
[1734670803231,14.37226957,194.97,194.9,10.12770301]
[1734670803436,0.96187854,194.98,194.93,10.12770301]
[1734670803663,0.96172382,195.0,194.95,10.12770301]
[1734670803836,28.60764199,195.02,194.95,10.12770301]
[1734670803837,0.96163625,195.01,194.95,10.12770301]
[1734670804267,11.08933926,195.01,194.94,10.12770301]
[1734670804755,10.12770301,195.0,194.9,3.2933]
[1734670804938,15.80621838,194.96,194.85,3.2326]
[1734670805254,15.80621838,194.94,194.88,15.80621838]
[1734670805439,39.58310238,195.0,194.86,15.80621838]
[1734670805440,16.76823618,194.93,194.86,15.80621838]
[1734670805640,0.9620178,194.93,194.87,15.80621838]
[1734670805845,15.80621838,194.95,194.88,15.80621838]
[1734670806052,0.96194948,194.94,194.88,15.80621838]
[1734670807033,15.80621838,194.96,194.89,15.80621838]
[1734670807234,15.80621838,194.97,194.9,15.80621838]
[1734670807547,15.80621838,194.98,194.91,15.80621838]
[1734670807746,16.76802436,194.99,194.92,15.80621838]
[1734670809260,15.80621838,194.98,194.91,15.80621838]
[1734670809439,0.96178972,194.97,194.91,15.80621838]
[1734670809635,0.96178347,195.04,194.96,15.80621838]
[1734670809842,16.7677287,195.06,194.99,15.80621838]
[1734670810363,15.80621838,195.01,194.94,15.80621838]
[1734670810530,15.80621838,194.99,194.92,22.32241838]
[1734670810736,0.96172525,194.98,194.92,15.80621838]
[1734670810934,0.96173621,194.98,194.92,15.80621838]
[1734670811156,15.80621838,194.99,194.92,15.80621838]
[1734670811556,15.80621838,194.99,194.89,2.9831]
[1734670811557,15.80621838,195.0,194.93,15.80621838]
[1734670811756,0.96169072,194.99,194.93,15.80621838]
[1734670811953,16.7679091,194.99,194.92,15.80621838]
[1734670814359,15.80621838,194.97,194.9,15.80621838]
[1734670814565,15.80621838,194.98,194.9,15.80621838]
[1734670814861,15.80621838,194.98,194.91,15.80621838]
[1734670815958,15.80621838,195.0,194.93,15.80621838]
[1734670816161,15.80621838,195.01,194.93,15.80621838]
[1734670816343,15.80621838,194.99,194.92,15.80621838]
[1734670816543,0.96177065,194.98,194.92,15.80621838]
[1734670817439,15.80621838,194.96,194.89,18.78931838]
[1734670817765,16.76814464,194.95,194.88,15.80621838]
[1734670818839,0.96192626,194.95,194.88,15.80621838]
[1734670819245,16.76812815,194.96,194.89,15.80621838]
[1734670819550,15.80621838,194.96,194.89,15.80621838]
[1734670819868,0.96188064,194.95,194.89,15.80621838]
[1734670820065,15.80621838,194.96,194.89,15.80621838]
[1734670820265,0.96186479,194.95,194.89,15.80621838]
[1734670820562,34.836952,195.03,194.87,6.2077]
[1734670820563,15.80621838,194.97,194.9,15.80621838]
[1734670820758,0.96185691,194.96,194.9,15.80621838]
[1734670821769,0.96185691,194.96,194.91,15.80621838]
[1734670821948,15.80621838,195.0,194.93,15.80621838]
[1734670822349,15.80621838,194.98,194.91,15.80621838]
[1734670822549,0.9618291,194.97,194.91,15.80621838]
[1734670823160,0.96181208,194.97,194.91,15.80621838]
[1734670823542,0.96178991,194.97,194.91,15.80621838]
[1734670823751,15.80621838,194.99,194.92,15.80621838]
[1734670824056,16.76792737,194.98,194.91,15.80621838]
[1734670824648,15.80621838,194.95,194.88,15.80621838]
[1734670824854,16.7681856,194.94,194.87,15.80621838]
[1734670825061,15.80621838,194.96,194.89,15.80621838]
[1734670825256,15.80621838,194.99,194.92,15.80621838]
[1734670826065,15.80621838,195.01,194.94,15.80621838]
[1734670826450,16.76784582,195.0,194.93,15.80621838]
[1734670827371,15.80621838,195.01,194.94,15.80621838]
[1734670827570,15.80621838,195.03,194.96,15.80621838]
[1734670827760,15.80621838,195.04,194.97,15.80621838]
[1734670827962,15.80621838,195.05,194.98,15.80621838]
[1734670828356,0.96145973,195.06,195.0,15.80621838]
[1734670828667,12.8122,195.13,195.01,15.80621838]
[1734670828668,15.80621838,195.08,195.01,15.80621838]
[1734670828875,15.80621838,195.09,195.02,15.80621838]
[1734670829069,16.76749459,195.08,195.01,15.80621838]
[1734670829265,15.80621838,195.05,194.98,15.80621838]
[1734670829568,15.80621838,195.03,194.96,15.80621838]
[1734670829873,0.96157434,195.02,194.96,15.80621838]
[1734670830259,15.80621838,195.03,194.96,15.80621838]
[1734670830861,15.80621838,195.04,194.97,15.80621838]
[1734670831051,0.96151063,195.03,194.97,15.80621838]
[1734670831452,16.76772901,195.03,194.96,15.80621838]
[1734670832273,15.80621838,195.02,194.95,15.80621838]
[1734670832974,15.80621838,195.04,194.97,15.80621838]
[1734670834375,15.80621838,195.02,194.95,15.80621838]
[1734670834576,0.96153253,195.09,194.99,15.80621838]
[1734670834577,20.0,195.07,194.99,15.80621838]
[1734670834762,15.80621838,195.06,194.99,15.80621838]
[1734670834967,15.80621838,195.07,195.0,15.80621838]
[1734670835266,0.96132785,195.06,195.0,15.80621838]
[1734670835470,15.80621838,195.07,195.0,15.80621838]
[1734670835854,15.80621838,195.09,195.02,15.80621838]
[1734670836463,16.76745402,195.09,195.02,15.80621838]
[1734670836777,0.96123586,195.08,195.02,15.80621838]
[1734670836978,15.80621838,195.1,195.03,15.80621838]
[1734670837674,25.6164,195.19,195.03,15.80621838]
[1734670837675,15.80621838,195.15,195.08,15.80621838]
[1734670837878,0.96095076,195.14,195.08,15.80621838]
[1734670838273,0.96095076,195.14,195.04,0.27633654]
[1734670838274,15.80621838,195.1,195.04,15.80621838]
[1734670838477,3.0265,195.17,195.02,15.80621838]
[1734670838478,16.76744741,195.09,195.02,15.80621838]
[1734670838663,15.80621838,195.1,195.03,15.80621838]
[1734670838865,15.80621838,195.11,195.04,15.80621838]
[1734670839058,15.74452378,195.11,195.04,15.80621838]
[1734670839259,0.96114142,195.1,195.04,15.80621838]
[1734670839781,15.74452378,195.11,195.04,15.80621838]
[1734670839994,15.80621838,195.12,195.06,15.80621838]
[1734670840299,15.80621838,195.12,195.05,15.80621838]
[1734670840464,0.96107813,195.11,195.05,15.80621838]
[1734670840670,15.80621838,195.12,195.05,15.80621838]
[1734670841686,15.80621838,195.13,195.06,15.80621838]
[1734670841994,15.80621838,195.14,195.07,15.80621838]
[1734670842896,15.80621838,195.15,195.07,15.80621838]
[1734670843192,15.80621838,195.15,195.08,15.80621838]
[1734670843365,16.76716865,195.16,195.09,15.80621838]
[1734670843995,16.76716865,195.16,195.07,15.80621838]
[1734670843996,15.80621838,195.14,195.07,15.80621838]
[1734670845269,15.80621838,195.14,195.01,3.28326725]
[1734670845270,15.80621838,195.15,195.08,15.80621838]
[1734670845475,16.76730721,195.16,195.09,15.80621838]
[1734670846699,15.80621838,195.15,195.08,15.80621838]
[1734670847404,15.80621838,195.16,195.09,15.80621838]
[1734670848024,15.80621838,195.15,195.04,0.27624797]
[1734670848220,15.80621838,195.13,195.06,15.80621838]
[1734670848417,0.96109981,195.12,195.06,15.80621838]
[1734670850608,15.80621838,195.15,195.07,15.80621838]
[1734670850899,0.96103139,195.14,195.07,15.80621838]
[1734670852200,0.96103139,195.14,195.08,15.80621838]
[1734670852410,15.80621838,195.16,195.09,15.80621838]
[1734670852604,3.98741099,195.17,195.12,15.80621838]
[1734670852804,0.96091099,195.17,195.05,0.27625699]
[1734670853016,0.96091099,195.17,195.04,15.80621838]
[1734670853219,15.80621838,195.1,195.03,15.80621838]
[1734670853435,15.80621838,195.08,195.01,15.80621838]
[1734670853634,15.80621838,195.06,194.99,15.80621838]
[1734670854136,15.80621838,195.04,194.97,15.80621838]
[1734670854315,0.9615286,195.03,194.97,15.80621838]
[1734670855410,15.80621838,195.02,194.95,15.80621838]
[1734670855610,15.80621838,194.99,194.9,3.0428]
[1734670855810,0.96181434,194.98,194.91,15.80621838]
[1734670856015,16.76803272,194.98,194.91,15.80621838]
[1734670856221,15.80621838,194.97,194.9,15.80621838]
[1734670856419,15.80621838,194.95,194.88,15.80621838]
[1734670856607,15.80621838,194.92,194.85,15.80621838]
[1734670856815,0.96210284,194.91,194.85,15.80621838]
[1734670857726,20.0,194.89,194.8,15.80621838]
[1734670857924,0.96239551,194.88,194.84,15.80621838]
[1734670858104,0.96220697,194.91,194.85,15.80621838]
[1734670858526,23.776884,194.81,194.69,12.08486724]
[1734670858823,15.80621838,194.76,194.69,27.89108562]
[1734670859031,15.80621838,194.78,194.7,15.80621838]
[1734670859253,0.96279519,194.77,194.7,15.80621838]
[1734670859451,15.80621838,194.79,194.72,15.80621838]
[1734670859656,0.96272597,194.78,194.72,15.80621838]
[1734670860854,15.80621838,194.78,194.71,15.80621838]
[1734670861053,25.33662497,194.77,194.7,25.33662497]
[1734670861238,0.96271977,194.81,194.7,25.33662497]
[1734670861444,0.96271977,194.81,194.75,25.33662497]
[1734670861658,25.33662497,194.82,194.75,25.33662497]
[1734670861839,23.776884,194.86,194.74,25.33662497]
[1734670861840,26.29924434,194.81,194.74,25.33662497]
[1734670862447,0.96261937,194.81,194.75,25.33662497]
[1734670862648,0.96258196,194.91,194.8,50.67324994]
[1734670862972,26.29868302,194.95,194.87,25.33662497]
[1734670863838,26.29868302,194.95,194.88,25.33662497]
[1734670864040,0.96205805,194.95,194.88,25.33662497]
[1734670864554,25.33662497,194.96,194.89,25.33662497]
[1734670864754,25.33662497,194.93,194.85,25.33662497]
[1734670864954,0.96211145,194.92,194.85,25.33662497]
[1734670865162,25.33662497,194.95,194.88,25.33662497]
[1734670865366,25.33662497,194.96,194.89,25.33662497]
[1734670865673,0.96187225,194.95,194.89,25.33662497]
[1734670866172,25.33662497,194.96,194.89,25.33662497]
[1734670866472,25.33662497,194.97,194.9,25.33662497]
[1734670866670,0.96187091,194.96,194.9,25.33662497]
[1734670866880,0.96187091,194.96,194.89,25.33662497]
[1734670867595,25.33662497,194.94,194.86,25.33662497]
[1734670867891,25.33662497,194.94,194.84,20.0]
[1734670867892,25.33662497,194.9,194.82,25.33662497]
[1734670868186,25.33662497,194.86,194.79,25.33662497]
[1734670868386,26.29903525,194.85,194.78,25.33662497]
[1734670868693,25.33662497,194.82,194.75,25.33662497]
[1734670868895,26.29921554,194.81,194.73,25.33662497]
[1734670869071,25.33662497,194.8,194.73,25.33662497]
[1734670869267,25.33662497,194.81,194.73,25.33662497]
[1734670869571,0.96266973,194.8,194.73,25.33662497]
[1734670869900,26.2992947,194.8,194.73,25.33662497]
[1734670870271,25.33662497,194.79,194.72,25.33662497]
[1734670870563,0.96275171,194.78,194.72,25.33662497]
[1734670870871,26.29937668,194.78,194.71,25.33662497]
[1734670871261,25.33662497,194.77,194.7,25.33662497]
[1734670871463,26.29953638,194.76,194.69,35.33662497]
[1734670873760,25.33662497,194.78,194.71,25.33662497]
[1734670873970,0.96279449,194.77,194.72,25.33662497]
[1734670874472,0.96279449,194.77,194.71,25.33662497]
[1734670875167,25.33662497,194.82,194.75,25.33662497]
[1734670875388,0.96262728,194.81,194.75,25.33662497]
[1734670875597,26.29925225,194.81,194.74,25.33662497]
[1734670875886,0.96262728,194.81,194.74,25.33662497]
[1734670876090,0.96262728,194.81,194.75,25.33662497]
[1734670876397,0.96264386,194.81,194.76,25.33662497]
[1734670877463,25.33662497,194.79,194.72,25.33662497]
[1734670877666,26.29949415,194.78,194.71,25.33662497]
[1734670877867,25.33662497,194.77,194.69,35.33662497]
[1734670878072,0.96293961,194.76,194.69,35.33662497]
[1734670878277,25.33662497,194.75,194.69,10.0]
[1734670878597,25.33662497,194.73,194.69,10.0]
[1734670878911,26.29968494,194.75,194.69,10.0]
[1734670879082,25.33662497,194.76,194.69,35.33662497]
[1734670879284,25.33662497,194.77,194.69,10.0]
[1734670879497,0.96284698,194.76,194.7,25.33662497]
[1734670880000,26.29947195,194.76,194.69,35.33662497]
[1734670880399,25.33662497,194.74,194.69,10.0]
[1734670880603,25.33662497,194.75,194.69,10.0]
[1734670880805,25.33662497,194.73,194.69,10.0]
[1734670880973,0.9631292,194.72,194.69,10.0]
[1734670881311,20.0,194.78,194.69,35.33662497]
[1734670881515,26.29957493,194.77,194.69,35.33662497]
[1734670881870,26.29957493,194.77,194.7,25.33662497]
[1734670882172,26.29957493,194.77,194.69,35.33662497]
[1734670882597,26.29957493,194.77,194.7,25.33662497]
[1734670883363,25.33662497,194.76,194.69,35.33662497]
[1734670883562,0.96295637,194.75,194.69,35.33662497]
[1734670884166,0.96295637,194.75,194.7,25.33662497]
[1734670884372,0.96289543,194.76,194.7,25.33662497]
[1734670884580,26.2995204,194.76,194.69,35.33662497]
[1734670884795,26.2995204,194.76,194.69,10.0]
[1734670885604,25.33662497,194.71,194.69,10.0]
[1734670885797,25.33662497,194.73,194.69,10.0]
[1734670885970,25.33662497,194.76,194.69,10.0]
[1734670886169,0.96290452,194.75,194.69,10.0]
[1734670886488,0.96290452,194.75,194.69,35.33662497]
[1734670886686,25.33662497,194.77,194.7,25.33662497]
[1734670886910,0.96283136,194.76,194.7,25.33662497]
[1734670887202,29.53955489,194.8,194.73,25.33662497]
[1734670887416,25.33662497,194.83,194.76,25.33662497]
[1734670887587,0.96256917,194.82,194.76,25.33662497]
[1734670887787,26.29919414,194.82,194.75,25.33662497]
[1734670887983,26.29919414,194.82,194.69,10.0]
[1734670887984,0.96256917,194.82,194.69,10.0]
[1734670888186,25.33662497,194.77,194.69,35.33662497]
[1734670888398,0.96286079,194.76,194.69,35.33662497]
[1734670888600,25.33662497,194.75,194.69,10.0]
[1734670888871,0.96296554,194.74,194.69,10.0]
[1734670889096,25.33662497,194.75,194.69,10.0]
[1734670889295,0.96291627,194.74,194.69,10.0]
[1734670889487,25.33662497,194.75,194.69,10.0]
[1734670889695,25.33662497,194.76,194.69,35.33662497]
[1734670889900,0.96288325,194.75,194.69,35.33662497]
[1734670890406,25.33662497,194.77,194.69,35.33662497]
[1734670890612,0.9628897,194.76,194.69,35.33662497]
[1734670890909,0.9628897,194.76,194.7,25.33662497]
[1734670891113,25.33662497,194.8,194.72,25.33662497]
[1734670891403,0.96272705,194.79,194.72,25.33662497]
[1734670892311,26.29935202,194.79,194.72,25.33662497]
[1734670892688,25.33662497,194.78,194.7,25.33662497]
[1734670892902,0.96279964,194.77,194.7,25.33662497]
[1734670893215,0.96279964,194.77,194.71,25.33662497]
[1734670893510,25.33662497,194.76,194.69,35.33662497]
[1734670893712,12.832,194.83,194.71,25.33662497]
[1734670893713,25.33662497,194.79,194.71,25.33662497]
[1734670894013,0.96272197,194.82,194.76,25.33662497]
[1734670894797,26.29919713,194.83,194.76,25.33662497]
[1734670895197,26.29903714,194.89,194.82,25.33662497]
[1734670895494,25.33662497,194.92,194.84,25.33662497]
[1734670895698,25.33662497,194.93,194.86,25.33662497]
[1734670895905,0.96203052,194.92,194.86,25.33662497]
[1734670896105,0.96202978,194.93,194.86,25.33662497]
[1734670896894,26.29865246,194.98,194.91,25.33662497]
[1734670897598,21.78728419,195.07,194.87,0.27849001]
[1734670897599,0.96182838,195.0,194.95,25.33662497]
[1734670897907,0.96166769,195.01,194.95,25.33662497]
[1734670898096,25.33662497,195.03,194.96,25.33662497]
[1734670898296,26.29822228,195.05,194.98,25.33662497]
[1734670898492,25.33662497,195.08,195.01,25.33662497]
[1734670898695,26.29792673,195.09,195.02,25.33662497]
[1734670898910,26.29787493,195.1,195.03,25.33662497]
[1734670899100,0.96124996,195.1,195.04,25.33662497]
[1734670899622,26.29787493,195.1,195.04,25.33662497]
[1734670900094,25.33662497,195.12,195.05,25.33662497]
[1734670900420,25.33662497,195.12,195.06,25.33662497]
[1734670900919,25.33662497,195.13,195.06,25.33662497]
[1734670901225,0.9610848,195.12,195.06,25.33662497]
[1734670901923,25.33662497,195.14,195.01,0.27660339]
[1734670902220,25.33662497,195.12,195.05,25.33662497]
[1734670902421,0.96115391,195.11,195.05,25.33662497]
[1734670902611,25.33662497,195.14,195.07,25.33662497]
[1734670902813,25.33662497,195.15,195.08,25.33662497]
[1734670903007,0.96100976,195.18,195.02,3.14675571]
[1734670903008,25.33662497,195.16,195.1,25.33662497]
[1734670903208,25.33662497,195.17,195.1,25.33662497]
[1734670903411,0.96084923,195.16,195.11,25.33662497]
[1734670904224,0.96084923,195.16,195.1,25.33662497]
[1734670904427,0.96084923,195.16,195.03,0.27630227]
[1734670904428,25.33662497,195.14,195.03,0.27630227]
[1734670904732,25.33662497,195.12,195.05,25.33662497]
[1734670905027,25.33662497,195.13,195.06,25.33662497]
[1734670905212,0.96107514,195.12,195.06,25.33662497]
[1734670905413,0.96107514,195.12,195.02,25.33662497]
[1734670905414,25.33662497,195.08,195.02,25.33662497]
[1734670905719,0.9613009,195.07,195.02,25.33662497]
[1734670905925,0.9613009,195.07,195.01,25.33662497]
[1734670906331,26.29792587,195.07,195.0,25.33662497]
[1734670906621,25.33662497,195.06,194.99,25.33662497]
[1734670906828,0.96150018,195.05,195.0,25.33662497]
[1734670907014,0.9613976,195.06,195.0,25.33662497]
[1734670907823,26.29802257,195.06,194.99,25.33662497]
[1734670908209,26.29802257,195.06,194.98,25.33662497]
[1734670908413,0.96149921,195.12,195.03,25.33662497]
[1734670908619,26.29812418,195.12,195.05,25.33662497]
[1734670909629,0.96149921,195.12,195.06,25.33662497]
[1734670909832,26.29812418,195.12,195.05,25.33662497]
[1734670912338,25.33662497,195.11,195.04,25.33662497]
[1734670912517,0.96124572,195.1,195.04,25.33662497]
[1734670913632,0.96121689,195.11,195.04,25.33662497]
[1734670913934,3.2154,195.19,195.06,25.33662497]
[1734670913935,25.33662497,195.14,195.06,25.33662497]
[1734670914110,0.96100461,195.13,195.07,25.33662497]
[1734670914309,0.96100461,195.13,195.08,25.33662497]
[1734670914737,0.96100461,195.13,195.07,25.33662497]
[1734670915539,3.2154,195.19,195.02,12.8187]
[1734670915540,25.33662497,195.16,195.09,25.33662497]
[1734670915731,0.96095821,195.15,195.04,6.3533]
[1734670915938,25.33662497,195.13,195.06,25.33662497]
[1734670916238,0.96105551,195.12,195.06,25.33662497]
[1734670916540,25.33662497,195.08,195.01,25.33662497]
[1734670916738,0.96131633,195.07,195.01,25.33662497]
[1734670917236,26.2979413,195.07,195.0,25.33662497]
[1734670918036,0.96131633,195.07,195.0,25.33662497]
[1734670918409,0.96131633,195.07,195.01,25.33662497]
[1734670919010,26.2979413,195.07,195.0,25.33662497]
[1734670919226,0.96131633,195.07,195.01,25.33662497]
[1734670920720,26.2979563,195.11,195.04,25.33662497]
[1734670921043,26.2979563,195.11,195.02,25.33662497]
[1734670921044,25.33662497,195.09,195.02,25.33662497]
[1734670921227,0.96125941,195.08,195.02,25.33662497]
[1734670921427,0.96125941,195.08,195.03,25.33662497]
[1734670921955,25.33662497,195.12,195.05,25.33662497]
[1734670922128,0.96114204,195.11,195.04,25.33662497]
[1734670922516,0.96114204,195.11,195.05,25.33662497]
[1734670923119,25.33662497,195.13,195.06,25.33662497]
[1734670923323,26.2976017,195.15,195.08,25.33662497]
[1734670923636,0.96097673,195.15,195.09,25.33662497]
[1734670923832,25.33662497,195.17,195.1,25.33662497]
[1734670924043,0.96087636,195.16,195.1,25.33662497]
[1734670924239,26.29750133,195.16,195.09,25.33662497]
[1734670924439,26.29750133,195.16,195.08,25.33662497]
[1734670926418,26.29750133,195.16,195.09,25.33662497]
[1734670926830,26.29750133,195.16,195.04,32.8176]
[1734670926831,0.96087636,195.16,195.11,25.33662497]
[1734670927036,0.96085809,195.17,195.11,25.33662497]
[1734670927949,26.29748306,195.17,195.1,25.33662497]
[1734670928166,26.29748306,195.17,195.06,16.0566]
[1734670928167,25.33662497,195.15,195.08,25.33662497]
[1734670928652,26.29758037,195.17,195.1,25.33662497]
[1734670932336,25.33662497,195.19,195.12,25.33662497]
[1734670932547,0.96075849,195.2,195.14,25.33662497]
[1734670932752,0.96075849,195.2,195.15,25.33662497]
[1734670933962,25.33662497,195.21,195.14,25.33662497]
[1734670934130,2.985,195.24,195.15,25.33662497]
[1734670934131,25.33662497,195.22,195.15,25.33662497]
[1734670934352,0.96060515,195.21,195.15,25.33662497]
[1734670935367,25.33662497,195.18,195.12,25.33662497]
[1734670935575,25.33662497,195.18,195.1,6.5936]
[1734670935576,0.96081914,195.17,195.11,25.33662497]
[1734670935771,0.96081914,195.17,195.1,6.5936]
[1734670935772,25.33662497,195.16,195.1,25.33662497]
[1734670936073,26.29756078,195.15,195.08,25.33662497]
[1734670936374,0.96093581,195.15,195.09,25.33662497]
[1734670936955,25.33662497,195.14,195.07,25.33662497]
[1734670937155,0.96107162,195.13,195.07,25.33662497]
[1734670937763,0.96107162,195.13,195.08,25.33662497]
[1734670937980,0.96100753,195.14,195.08,25.33662497]
[1734670938561,0.96100753,195.14,195.07,25.33662497]
[1734670938861,0.96100753,195.14,195.01,3.92134865]
[1734670938862,25.33662497,195.12,195.05,25.33662497]
[1734670939070,25.33662497,195.09,195.02,25.33662497]